[Event "5e festival international d'échecs d'A"]
[Site "Allauch, France"]
[Date "2023.08.31"]
[Round "6.6"]
[White "Touzet, Cassien"]
[Black "Hoang Villemagne, Mathieu"]
[Result "1/2-1/2"]
[WhiteElo "1389"]
[BlackElo "1350"]
[PlyCount "111"]
[EventDate "2023.??.??"]
[TimeControl "1"]

1. e4 {[%emt 0:00:00]} e5 {[%emt 0:00:00]} 2. Bc4 {[%emt 0:00:00]} Nf6 {
[%emt 0:00:00]} 3. d3 {[%emt 0:00:00]} c6 {[%emt 0:00:00]} 4. Nf3 {[%emt 0:00:
00]} d5 {[%emt 0:00:00]} 5. exd5 {[%emt 0:00:00]} cxd5 {[%emt 0:00:00]} 6. Bb5+
{[%emt 0:00:00]} Bd7 {[%emt 0:00:00]} 7. Bxd7+ {[%emt 0:00:00]} Nbxd7 {[%emt 0:
00:00]} 8. O-O {[%emt 0:00:00]} Bd6 {[%emt 0:00:00]} 9. Bg5 {[%emt 0:00:00]}
O-O {[%emt 0:00:00]} 10. Nc3 {[%emt 0:06:04]} Qb6 {[%emt 0:00:00]} 11. Rb1 {
[%emt 0:00:00]} Rac8 {[%emt 0:00:00]} 12. Qe2 {[%emt 0:00:00]} Bb8 {[%emt 0:00:
00]} 13. Rfe1 {[%emt 0:00:00]} Rfe8 {[%emt 0:00:00]} 14. Qd2 {[%emt 0:00:00]}
a6 {[%emt 0:00:00]} 15. Re2 {[%emt 0:00:00]} Rc6 {[%emt 0:00:00]} 16. Qe1 {
[%emt 0:00:00]} Rce6 {[%emt 0:00:00]} 17. Bh4 {[%emt 0:00:00]} e4 {[%emt 0:00:
00]} 18. Ng5 {[%emt 0:00:00]} Re5 {[%emt 0:00:00]} 19. dxe4 {[%emt 0:00:00]}
dxe4 {[%emt 0:00:00]} 20. Na4 {[%emt 0:00:00]} Qb5 {[%emt 0:00:00]} 21. Nc3 {
[%emt 0:00:00]} Qb6 {[%emt 0:00:00]} 22. Na4 {[%emt 0:00:00]} Qc6 {[%emt 0:00:
00]} 23. Nc3 {[%emt 0:00:00]} h6 {[%emt 0:00:00]} 24. Nh3 {[%emt 0:00:00]} Rh5
{[%emt 0:00:00]} 25. Bg3 {[%emt 0:00:00]} Bxg3 {[%emt 0:00:00]} 26. hxg3 {
[%emt 0:00:00]} Rxh3 {[%emt 0:00:00]} 27. gxh3 {[%emt 0:00:00]} Ne5 {[%emt 0:
00:00]} 28. Qd1 {[%emt 0:00:00]} Nf3+ {[%emt 0:00:00]} 29. Kf1 {[%emt 0:00:00]}
Qe6 {[%emt 0:00:00]} 30. Kg2 {[%emt 0:00:00]} h5 {[%emt 0:00:00]} 31. Re3 {
[%emt 0:00:00]} Ng5 {[%emt 0:00:00]} 32. Qh1 {[%emt 0:00:00]} h4 {[%emt 0:00:
00]} 33. Rbe1 {[%emt 0:00:00]} Nf3 {[%emt 0:00:00]} 34. R1e2 {[%emt 0:00:00]}
Nd4 {[%emt 0:00:00]} 35. Rd2 {[%emt 0:00:00]} Nf5 {[%emt 0:00:00]} 36. Qe1 {
[%emt 0:00:00]} Nxe3+ {[%emt 0:00:00]} 37. Qxe3 {[%emt 0:00:00]} hxg3 {[%emt 0:
00:00]} 38. fxg3 {[%emt 0:00:00]} g6 {[%emt 0:00:00]} 39. Rd4 {[%emt 0:00:00]}
Qb6 {[%emt 0:00:00]} 40. b3 {[%emt 0:00:00]} Kg7 {[%emt 0:00:00]} 41. a4 {
[%emt 0:00:00]} Qc5 {[%emt 0:00:00]} 42. Rd3 {[%emt 0:00:00]} Qf5 {[%emt 0:00:
00]} 43. Rd4 {[%emt 0:00:00]} Rh8 {[%emt 0:00:00]} 44. g4 {[%emt 0:00:00]} Qf3+
{[%emt 0:00:00]} 45. Qxf3 {[%emt 0:00:00]} exf3+ {[%emt 0:00:00]} 46. Kg3 {
[%emt 0:00:00]} f2 {[%emt 0:00:00]} 47. Rf4 {[%emt 0:00:00]} Rc8 {[%emt 0:00:
00]} 48. Nd1 {[%emt 0:00:00]} Rxc2 {[%emt 0:00:00]} 49. Nxf2 {[%emt 0:00:00]}
Nd7 {[%emt 0:00:00]} 50. Ne4 {[%emt 0:00:00]} Nc5 {[%emt 0:00:00]} 51. Nxc5 {
[%emt 0:00:00]} Rxc5 {[%emt 0:00:00]} 52. Rb4 {[%emt 0:00:00]} b5 {[%emt 0:00:
00]} 53. axb5 {[%emt 0:00:00]} axb5 {[%emt 0:00:00]} 54. Rf4 {[%emt 0:00:00]}
Rc3+ {[%emt 0:00:00]} 55. Rf3 {[%emt 0:00:00]} b4 {[%emt 0:00:00]} 56. Kf2 {
[%emt 0:00:00]} 1/2-1/2

[Event "5e festival international d'échecs d'A"]
[Site "Allauch, France"]
[Date "2023.08.31"]
[Round "6.7"]
[White "Personne, Solene"]
[Black "Omelchenko, Danila"]
[Result "0-1"]
[WhiteElo "1542"]
[BlackElo "1199"]
[PlyCount "76"]
[EventDate "2023.??.??"]
[TimeControl "1"]

1. e4 {[%emt 0:00:00]} Nf6 {[%emt 0:00:00]} 2. e5 {[%emt 0:00:00]} Nd5 {
[%emt 0:00:00]} 3. c4 {[%emt 0:00:00]} Nb6 {[%emt 0:00:00]} 4. c5 {[%emt 0:00:
00]} Nd5 {[%emt 0:00:00]} 5. Bc4 {[%emt 0:00:00]} c6 {[%emt 0:00:00]} 6. Nc3 {
[%emt 0:00:00]} e6 {[%emt 0:00:00]} 7. Ne4 {[%emt 0:00:00]} b6 {[%emt 0:00:00]}
8. Nd6+ {[%emt 0:00:00]} Bxd6 {[%emt 0:00:00]} 9. cxd6 {[%emt 0:00:00]} c5 {
[%emt 0:00:00]} 10. d4 {[%emt 0:00:00]} Nc6 {[%emt 0:00:00]} 11. Qg4 {[%emt 0:
00:00]} Kf8 {[%emt 0:00:00]} 12. Bxd5 {[%emt 0:00:00]} exd5 {[%emt 0:00:00]}
13. Nf3 {[%emt 0:00:00]} cxd4 {[%emt 0:00:00]} 14. Bg5 {[%emt 0:00:00]} Qe8 {
[%emt 0:00:00]} 15. Nxd4 {[%emt 0:00:00]} Qxe5+ {[%emt 0:00:00]} 16. Be3 {
[%emt 0:00:00]} h5 {[%emt 0:00:00]} 17. Nxc6 {[%emt 0:00:00]} dxc6 {[%emt 0:00:
00]} 18. Qf4 {[%emt 0:00:00]} Qxf4 {[%emt 0:00:00]} 19. Bxf4 {[%emt 0:00:00]}
f6 {[%emt 0:00:00]} 20. h4 {[%emt 0:00:00]} Kf7 {[%emt 0:00:00]} 21. Kd2 {
[%emt 0:00:00]} Re8 {[%emt 0:00:00]} 22. Rhe1 {[%emt 0:00:00]} Bf5 {[%emt 0:00:
00]} 23. Rac1 {[%emt 0:00:00]} Bd7 {[%emt 0:00:00]} 24. Re3 {[%emt 0:00:00]} d4
{[%emt 0:00:00]} 25. Rxe8 {[%emt 0:00:00]} Rxe8 {[%emt 0:00:00]} 26. Rc4 {
[%emt 0:00:00]} c5 {[%emt 0:00:00]} 27. a4 {[%emt 0:00:00]} Ke6 {[%emt 0:00:00]
} 28. Kd3 {[%emt 0:00:00]} Kd5 {[%emt 0:00:00]} 29. b3 {[%emt 0:00:00]} b5 {
[%emt 0:00:00]} 30. Rc1 {[%emt 0:00:00]} bxa4 {[%emt 0:00:00]} 31. bxa4 {
[%emt 0:00:00]} Bxa4 {[%emt 0:00:00]} 32. Bg3 {[%emt 0:00:00]} c4+ {[%emt 0:00:
00]} 33. Kd2 {[%emt 0:00:00]} c3+ {[%emt 0:00:00]} 34. Kd3 {[%emt 0:00:00]} Bb3
{[%emt 0:00:00]} 35. Ra1 {[%emt 0:00:00]} Bc4+ {[%emt 0:00:00]} 36. Kc2 {
[%emt 0:00:00]} Re2+ {[%emt 0:00:00]} 37. Kc1 {[%emt 0:00:00]} d3 {[%emt 0:00:
00]} 38. Kb1 {[%emt 0:00:00]} Re1# {[%emt 0:00:00]} 0-1

[Event "5e festival international d'échecs d'A"]
[Site "Allauch, France"]
[Date "2023.08.31"]
[Round "6.8"]
[White "Negre Albert, Oscar"]
[Black "Maggio, Lucas"]
[Result "0-1"]
[WhiteElo "1296"]
[BlackElo "1321"]
[PlyCount "50"]
[EventDate "2023.??.??"]
[TimeControl "1"]

1. d4 {[%emt 0:00:00]} d5 {[%emt 0:00:00]} 2. c4 {[%emt 0:00:00]} e6 {[%emt 0:
00:00]} 3. Nc3 {[%emt 0:00:00]} Nf6 {[%emt 0:00:00]} 4. Bg5 {[%emt 0:00:00]}
Nbd7 {[%emt 0:00:00]} 5. cxd5 {[%emt 0:00:00]} exd5 {[%emt 0:00:00]} 6. Nxd5 {
[%emt 0:00:00]} Nxd5 {[%emt 0:00:00]} 7. Bxd8 {[%emt 0:00:00]} Bb4+ {[%emt 0:
00:00]} 8. Qd2 {[%emt 0:00:00]} Bxd2+ {[%emt 0:00:00]} 9. Kxd2 {[%emt 0:00:00]}
Kxd8 {[%emt 0:00:00]} 10. e4 {[%emt 0:00:00]} N5f6 {[%emt 0:00:00]} 11. f3 {
[%emt 0:00:00]} Ke7 {[%emt 0:00:00]} 12. Bd3 {[%emt 0:00:00]} h6 {[%emt 0:00:
00]} 13. Ne2 {[%emt 0:00:00]} Rd8 {[%emt 0:00:00]} 14. Rac1 {[%emt 0:00:00]} c6
{[%emt 0:00:00]} 15. b4 {[%emt 0:00:00]} Nb6 {[%emt 0:00:00]} 16. b5 {[%emt 0:
00:00]} Bd7 {[%emt 0:00:00]} 17. bxc6 {[%emt 0:00:00]} Bxc6 {[%emt 0:00:00]}
18. d5 {[%emt 0:00:00]} Ba4 {[%emt 0:00:00]} 19. Nd4 {[%emt 0:00:00]} g6 {
[%emt 0:00:00]} 20. Bb5 {[%emt 0:00:00]} Rac8 {[%emt 0:00:00]} 21. Bxa4 {
[%emt 0:00:00]} Nxa4 {[%emt 0:00:00]} 22. Nb5 {[%emt 0:00:00]} a6 {[%emt 0:00:
00]} 23. Rxc8 {[%emt 0:00:00]} Rxc8 {[%emt 0:00:00]} 24. d6+ {[%emt 0:00:00]}
Kd7 {[%emt 0:00:00]} 25. Nc7 {[%emt 0:00:00]} Kxd6 {[%emt 0:00:00]} 0-1

[Event "5e festival international d'échecs d'A"]
[Site "Allauch, France"]
[Date "2023.08.31"]
[Round "7.1"]
[White "Petrosyan, Armen"]
[Black "Massardo, Quentin"]
[Result "1-0"]
[WhiteElo "2360"]
[BlackElo "1990"]
[PlyCount "105"]
[EventDate "2023.??.??"]
[TimeControl "1"]

1. e4 {[%emt 0:00:00]} e5 {[%emt 0:00:00]} 2. Nf3 {[%emt 0:00:00]} Nf6 {
[%emt 0:00:00]} 3. d4 {[%emt 0:00:00]} Nxe4 {[%emt 0:00:00]} 4. Bd3 {[%emt 0:
00:00]} d5 {[%emt 0:00:00]} 5. Nxe5 {[%emt 0:00:00]} Bd6 {[%emt 0:00:00]} 6.
Nc3 {[%emt 0:00:00]} Nxc3 {[%emt 0:00:00]} 7. bxc3 {[%emt 0:00:00]} Nd7 {
[%emt 0:00:00]} 8. O-O {[%emt 0:00:00]} Qf6 {[%emt 0:00:00]} 9. Ng4 {[%emt 0:
00:00]} Qh4 {[%emt 0:00:00]} 10. Re1+ {[%emt 0:00:00]} Kf8 {[%emt 0:00:00]} 11.
g3 {[%emt 0:05:02]} Qd8 {[%emt 0:00:00]} 12. Qf3 {[%emt 0:00:00]} h5 {[%emt 0:
00:00]} 13. Bg6 {[%emt 0:00:00]} Nf6 {[%emt 0:00:00]} 14. Nxf6 {[%emt 0:00:00]}
Qxf6 {[%emt 0:00:00]} 15. Bxh5 {[%emt 0:00:00]} Qxf3 {[%emt 0:00:00]} 16. Bxf3
{[%emt 0:00:00]} c6 {[%emt 0:00:00]} 17. Rb1 {[%emt 0:00:00]} b5 {[%emt 0:00:
00]} 18. a4 {[%emt 0:00:00]} a6 {[%emt 0:00:00]} 19. Ra1 {[%emt 0:00:00]} Bb7 {
[%emt 0:00:00]} 20. Ba3 {[%emt 0:00:00]} Bxa3 {[%emt 0:00:00]} 21. Rxa3 {
[%emt 0:00:00]} Re8 {[%emt 0:00:00]} 22. Rb1 {[%emt 0:00:00]} Re7 {[%emt 0:00:
00]} 23. axb5 {[%emt 0:00:00]} cxb5 {[%emt 0:00:00]} 24. c4 {[%emt 0:00:00]}
dxc4 {[%emt 0:00:00]} 25. Bxb7 {[%emt 0:00:00]} Rxb7 {[%emt 0:00:00]} 26. Rxa6
{[%emt 0:00:00]} Ke7 {[%emt 0:00:00]} 27. Rc6 {[%emt 0:00:00]} Rd8 {[%emt 0:00:
00]} 28. Rxc4 {[%emt 0:00:00]} Rbd7 {[%emt 0:00:00]} 29. Rxb5 {[%emt 0:00:00]}
Rxd4 {[%emt 0:00:00]} 30. Rb7+ {[%emt 0:00:00]} Kf6 {[%emt 0:00:00]} 31. Rc6+ {
[%emt 0:00:00]} R4d6 {[%emt 0:00:00]} 32. Rbb6 {[%emt 0:00:00]} Rxc6 {[%emt 0:
00:00]} 33. Rxc6+ {[%emt 0:00:00]} Kf5 {[%emt 0:00:00]} 34. Rc7 {[%emt 0:00:00]
} Kf6 {[%emt 0:00:00]} 35. h4 {[%emt 0:00:00]} Rd5 {[%emt 0:00:00]} 36. Kg2 {
[%emt 0:00:00]} g5 {[%emt 0:00:00]} 37. c4 {[%emt 0:00:00]} Re5 {[%emt 0:00:00]
} 38. Rc6+ {[%emt 0:00:00]} Kg7 {[%emt 0:00:00]} 39. hxg5 {[%emt 0:00:00]} Rxg5
{[%emt 0:00:00]} 40. Rd6 {[%emt 0:00:00]} Rc5 {[%emt 0:00:00]} 41. Rd4 {
[%emt 0:00:00]} Kf6 {[%emt 0:00:00]} 42. Kf3 {[%emt 0:00:00]} Ke5 {[%emt 0:00:
00]} 43. Rd5+ {[%emt 0:00:00]} Rxd5 {[%emt 0:00:00]} 44. cxd5 {[%emt 0:00:00]}
Kxd5 {[%emt 0:00:00]} 45. Kf4 {[%emt 0:00:00]} Ke6 {[%emt 0:00:00]} 46. Kg5 {
[%emt 0:00:00]} Ke5 {[%emt 0:00:00]} 47. f4+ {[%emt 0:00:00]} Ke6 {[%emt 0:00:
00]} 48. f5+ {[%emt 0:00:00]} Ke7 {[%emt 0:00:00]} 49. g4 {[%emt 0:00:00]} Kf8
{[%emt 0:00:00]} 50. Kf6 {[%emt 0:00:00]} Kg8 {[%emt 0:00:00]} 51. Ke7 {
[%emt 0:00:00]} Kg7 {[%emt 0:00:00]} 52. g5 {[%emt 0:00:00]} Kg8 {[%emt 0:00:
00]} 53. f6 {[%emt 0:00:00]} 1-0

[Event "5e festival international d'échecs d'A"]
[Site "Allauch, France"]
[Date "2023.08.31"]
[Round "7.4"]
[White "Moncamp, Gilles"]
[Black "Derige Kane, Yan"]
[Result "0-1"]
[WhiteElo "2103"]
[BlackElo "2162"]
[PlyCount "68"]
[EventDate "2023.??.??"]
[TimeControl "1"]

1. e4 {[%emt 0:00:00]} c6 {[%emt 0:00:00]} 2. d4 {[%emt 0:00:00]} d5 {[%emt 0:
00:00]} 3. e5 {[%emt 0:00:00]} Bf5 {[%emt 0:00:00]} 4. Nc3 {[%emt 0:00:00]} e6
{[%emt 0:00:12]} 5. g4 {[%emt 0:00:00]} Bg6 {[%emt 0:00:00]} 6. Nge2 {[%emt 0:
00:00]} c5 {[%emt 0:00:00]} 7. Be3 {[%emt 0:00:00]} h5 {[%emt 0:00:00]} 8. Nf4
{[%emt 0:00:00]} Bh7 {[%emt 0:00:00]} 9. Bb5+ {[%emt 0:00:00]} Nc6 {[%emt 0:00:
00]} 10. dxc5 {[%emt 0:00:00]} hxg4 {[%emt 0:00:00]} 11. Qxg4 {[%emt 0:00:00]}
Bxc2 {[%emt 0:00:00]} 12. Qe2 {[%emt 0:00:00]} Bf5 {[%emt 0:00:00]} 13. O-O-O {
[%emt 0:00:00]} Nge7 {[%emt 0:00:00]} 14. Rd4 {[%emt 0:00:00]} Qc7 {[%emt 0:00:
00]} 15. Nd3 {[%emt 0:00:00]} Bxd3 {[%emt 0:00:00]} 16. Qxd3 {[%emt 0:00:00]}
Qxe5 {[%emt 0:00:00]} 17. Bf4 {[%emt 0:00:00]} Qf5 {[%emt 0:00:00]} 18. Bxc6+ {
[%emt 0:00:00]} bxc6 {[%emt 0:00:00]} 19. Qa6 {[%emt 0:00:00]} e5 {[%emt 0:00:
00]} 20. Re1 {[%emt 0:00:00]} f6 {[%emt 0:00:00]} 21. Bg3 {[%emt 0:00:00]} g6 {
[%emt 0:00:00]} 22. Rb4 {[%emt 0:00:00]} Kf7 {[%emt 0:00:00]} 23. Rb7 {[%emt 0:
00:00]} Bh6+ {[%emt 0:00:00]} 24. Kd1 {[%emt 0:00:00]} Rhb8 {[%emt 0:00:00]}
25. f4 {[%emt 0:00:00]} Rxb7 {[%emt 0:00:00]} 26. Qxb7 {[%emt 0:00:00]} Qd3+ {
[%emt 0:00:00]} 27. Kc1 {[%emt 0:00:00]} Re8 {[%emt 0:00:00]} 28. Qd7 {[%emt 0:
00:00]} exf4 {[%emt 0:00:00]} 29. Qe6+ {[%emt 0:00:00]} Kg7 {[%emt 0:00:00]}
30. Bf2 {[%emt 0:00:00]} d4 {[%emt 0:00:00]} 31. Bxd4 {[%emt 0:00:00]} Qxd4 {
[%emt 0:00:00]} 32. Kc2 {[%emt 0:00:00]} Qxc5 {[%emt 0:00:00]} 33. Re4 {
[%emt 0:00:00]} Qf5 {[%emt 0:00:00]} 34. Qd6 {[%emt 0:00:00]} Nd5 {[%emt 0:00:
00]} 0-1

[Event "5e festival international d'échecs d'A"]
[Site "Allauch, France"]
[Date "2023.08.31"]
[Round "7.5"]
[White "Toth, Kincso"]
[Black "Charvein, Gabriel"]
[Result "0-1"]
[WhiteElo "1709"]
[BlackElo "1993"]
[PlyCount "100"]
[EventDate "2023.??.??"]
[TimeControl "1"]

1. e4 {[%emt 0:00:00]} Nf6 {[%emt 0:00:00]} 2. e5 {[%emt 0:00:00]} Nd5 {
[%emt 0:00:00]} 3. c4 {[%emt 0:00:00]} Nb6 {[%emt 0:00:00]} 4. d4 {[%emt 0:00:
00]} d6 {[%emt 0:00:00]} 5. exd6 {[%emt 0:00:00]} cxd6 {[%emt 0:00:00]} 6. Nf3
{[%emt 0:00:00]} g6 {[%emt 0:00:00]} 7. Nc3 {[%emt 0:00:00]} Bg7 {[%emt 0:00:
00]} 8. Be3 {[%emt 0:00:00]} O-O {[%emt 0:00:00]} 9. Be2 {[%emt 0:00:00]} Bg4 {
[%emt 0:00:00]} 10. b3 {[%emt 0:00:00]} e6 {[%emt 0:00:00]} 11. Rc1 {[%emt 0:
00:00]} d5 {[%emt 0:00:00]} 12. h3 {[%emt 0:00:00]} Bxf3 {[%emt 0:00:00]} 13.
Bxf3 {[%emt 0:00:00]} Nc6 {[%emt 0:00:00]} 14. cxd5 {[%emt 0:00:00]} Nxd5 {
[%emt 0:00:00]} 15. Nxd5 {[%emt 0:00:00]} exd5 {[%emt 0:00:00]} 16. O-O {
[%emt 0:00:00]} Qa5 {[%emt 0:00:00]} 17. Re1 {[%emt 0:00:00]} Rad8 {[%emt 0:00:
00]} 18. Re2 {[%emt 0:00:00]} Qb4 {[%emt 0:00:00]} 19. Rd2 {[%emt 0:00:00]} Ne7
{[%emt 0:00:00]} 20. Rd3 {[%emt 0:00:00]} Nf5 {[%emt 0:00:00]} 21. Bd2 {
[%emt 0:00:00]} Qb5 {[%emt 0:00:00]} 22. Bf4 {[%emt 0:00:00]} b6 {[%emt 0:00:
00]} 23. Bg4 {[%emt 0:00:00]} Nd6 {[%emt 0:00:00]} 24. Rc7 {[%emt 0:00:00]} Qa6
{[%emt 0:00:00]} 25. Bxd6 {[%emt 0:00:00]} Rxd6 {[%emt 0:00:00]} 26. a4 {
[%emt 0:00:00]} Qa5 {[%emt 0:00:00]} 27. Re3 {[%emt 0:00:00]} Qb4 {[%emt 0:00:
00]} 28. Rxa7 {[%emt 0:00:00]} Bxd4 {[%emt 0:00:00]} 29. Rd3 {[%emt 0:00:00]}
Bc5 {[%emt 0:00:00]} 30. Qd2 {[%emt 0:00:00]} Qa3 {[%emt 0:00:00]} 31. Rxd5 {
[%emt 0:00:00]} Rf6 {[%emt 0:00:00]} 32. Bf3 {[%emt 0:00:00]} Qa1+ {[%emt 0:00:
00]} 33. Qd1 {[%emt 0:00:00]} Qb2 {[%emt 0:00:00]} 34. Rd2 {[%emt 0:00:00]} Qe5
{[%emt 0:00:00]} 35. Rd5 {[%emt 0:00:00]} Qf4 {[%emt 0:00:00]} 36. Rad7 {
[%emt 0:00:00]} Qh4 {[%emt 0:00:00]} 37. Rd2 {[%emt 0:00:00]} Re6 {[%emt 0:00:
00]} 38. Rd8 {[%emt 0:00:00]} Bxf2+ {[%emt 0:00:00]} 39. Rxf2 {[%emt 0:00:00]}
Rxd8 {[%emt 0:00:00]} 40. Qc2 {[%emt 0:00:00]} Re1+ {[%emt 0:00:00]} 41. Rf1 {
[%emt 0:00:00]} Rde8 {[%emt 0:00:00]} 42. Qf2 {[%emt 0:00:00]} Rxf1+ {[%emt 0:
00:00]} 43. Kxf1 {[%emt 0:00:00]} Qf6 {[%emt 0:00:00]} 44. Qd2 {[%emt 0:00:00]}
Rd8 {[%emt 0:00:00]} 45. Qc2 {[%emt 0:00:00]} Qd4 {[%emt 0:00:00]} 46. Qc4 {
[%emt 0:00:00]} Qe3 {[%emt 0:00:00]} 47. Bd5 {[%emt 0:00:00]} Kg7 {[%emt 0:00:
00]} 48. Qe4 {[%emt 0:00:00]} Qc1+ {[%emt 0:00:00]} 49. Ke2 {[%emt 0:00:00]}
Qc3 {[%emt 0:00:00]} 50. Kf2 {[%emt 0:00:00]} Qc5+ {[%emt 0:00:00]} 0-1

[Event "5e festival international d'échecs d'A"]
[Site "Allauch, France"]
[Date "2023.08.31"]
[Round "7.6"]
[White "Hoang Villemagne, Mathieu"]
[Black "Omelchenko, Danila"]
[Result "1-0"]
[WhiteElo "1350"]
[BlackElo "1199"]
[PlyCount "87"]
[EventDate "2023.??.??"]
[TimeControl "1"]

1. e4 {[%emt 0:00:10]} Nf6 {[%emt 0:00:10]} 2. e5 {[%emt 0:00:00]} Nd5 3. c4 {
[%emt 0:00:03]} Nb6 {[%emt 0:00:02]} 4. d4 d6 {[%emt 0:00:00]} 5. exd6 {
[%emt 0:01:16]} cxd6 {[%emt 0:00:02]} 6. Nf3 {[%emt 0:00:00]} Bf5 {[%emt 0:00:
00]} 7. Bd3 {[%emt 0:00:00]} Bxd3 {[%emt 0:00:00]} 8. Qxd3 {[%emt 0:00:00]} Nc6
{[%emt 0:00:00]} 9. d5 {[%emt 0:00:00]} Nb4 {[%emt 0:00:00]} 10. Qe2 {[%emt 0:
00:00]} Rc8 {[%emt 0:00:00]} 11. b3 {[%emt 0:00:00]} N6xd5 {[%emt 0:00:00]} 12.
Qd2 {[%emt 0:00:00]} Qa5 {[%emt 0:00:00]} 13. O-O {[%emt 0:00:00]} Nf6 {
[%emt 0:00:00]} 14. Re1 {[%emt 0:00:00]} e6 {[%emt 0:00:00]} 15. Bb2 {[%emt 0:
00:00]} Be7 {[%emt 0:00:00]} 16. Bc3 {[%emt 0:00:00]} d5 {[%emt 0:00:00]} 17.
a3 {[%emt 0:00:00]} Ne4 {[%emt 0:00:00]} 18. Bxb4 {[%emt 0:00:00]} Nxd2 {
[%emt 0:00:00]} 19. Bxa5 {[%emt 0:00:00]} Nxb3 {[%emt 0:00:00]} 20. Bc3 {
[%emt 0:00:00]} Rxc4 {[%emt 0:00:00]} 21. Ra2 {[%emt 0:00:00]} O-O {[%emt 0:00:
00]} 22. Nfd2 {[%emt 0:00:00]} Nxd2 {[%emt 0:00:00]} 23. Rxd2 {[%emt 0:00:00]}
Rfc8 {[%emt 0:00:00]} 24. Rd3 {[%emt 0:00:00]} b5 {[%emt 0:00:00]} 25. Be5 {
[%emt 0:00:00]} a5 {[%emt 0:00:00]} 26. Rb3 {[%emt 0:00:00]} a4 {[%emt 0:00:00]
} 27. Rxb5 {[%emt 0:00:00]} Rc1 {[%emt 0:00:00]} 28. Kf1 {[%emt 0:00:00]} f6 {
[%emt 0:00:00]} 29. Bb2 {[%emt 0:00:00]} Rxe1+ {[%emt 0:00:00]} 30. Kxe1 {
[%emt 0:00:00]} Ra8 {[%emt 0:00:00]} 31. Rb7 {[%emt 0:00:00]} Bd8 {[%emt 0:00:
00]} 32. Nc3 {[%emt 0:00:00]} d4 {[%emt 0:00:00]} 33. Nb5 {[%emt 0:00:00]} Ba5+
{[%emt 0:00:00]} 34. Ke2 {[%emt 0:00:00]} e5 {[%emt 0:00:00]} 35. Nd6 {[%emt 0:
00:00]} Rd8 {[%emt 0:00:00]} 36. Nf5 {[%emt 0:00:00]} d3+ {[%emt 0:00:00]} 37.
Kd1 {[%emt 0:00:00]} g6 {[%emt 0:00:00]} 38. Ne7+ {[%emt 0:00:00]} Kf8 {
[%emt 0:00:00]} 39. Nc6 {[%emt 0:00:00]} Rd5 {[%emt 0:00:00]} 40. Nxa5 {
[%emt 0:00:00]} Rxa5 {[%emt 0:00:00]} 41. Kd2 {[%emt 0:00:00]} Rd5 {[%emt 0:00:
00]} 42. Rxh7 {[%emt 0:00:00]} e4 {[%emt 0:00:00]} 43. Bxf6 {[%emt 0:00:00]}
Rc5 {[%emt 0:00:00]} 44. Be7+ {[%emt 0:00:00]} 1-0

[Event "5e festival international d'échecs d'A"]
[Site "Allauch, France"]
[Date "2023.08.31"]
[Round "7.7"]
[White "Maggio, Lucas"]
[Black "Touzet, Cassien"]
[Result "1-0"]
[WhiteElo "1321"]
[BlackElo "1389"]
[PlyCount "87"]
[EventDate "2023.??.??"]
[TimeControl "1"]

1. c4 {[%emt 0:00:00]} c6 {[%emt 0:00:00]} 2. Nf3 {[%emt 0:00:00]} f5 {[%emt 0:
00:00]} 3. Nc3 {[%emt 0:00:00]} Nf6 {[%emt 0:00:00]} 4. d4 {[%emt 0:00:00]} g6
{[%emt 0:00:00]} 5. g3 {[%emt 0:00:00]} Bg7 {[%emt 0:00:00]} 6. Bg2 {[%emt 0:
00:00]} O-O {[%emt 0:00:00]} 7. O-O {[%emt 0:00:00]} d6 {[%emt 0:00:00]} 8. Bg5
{[%emt 0:00:00]} Nbd7 {[%emt 0:00:00]} 9. d5 {[%emt 0:00:00]} Nb6 {[%emt 0:00:
00]} 10. Qb3 {[%emt 0:00:00]} e5 {[%emt 0:00:00]} 11. dxc6 {[%emt 0:00:00]}
bxc6 {[%emt 0:00:00]} 12. c5+ {[%emt 0:00:00]} Nbd5 {[%emt 0:00:00]} 13. Bxf6 {
[%emt 0:00:00]} Rxf6 {[%emt 0:00:00]} 14. Nxd5 {[%emt 0:00:00]} cxd5 {[%emt 0:
00:00]} 15. Qxd5+ {[%emt 0:00:00]} Be6 {[%emt 0:00:00]} 16. Qxd6 {[%emt 0:00:
00]} Qxd6 {[%emt 0:00:00]} 17. cxd6 {[%emt 0:00:00]} e4 {[%emt 0:00:00]} 18.
Ng5 {[%emt 0:00:00]} Bc4 {[%emt 0:00:00]} 19. Rfc1 {[%emt 0:00:00]} Bxe2 {
[%emt 0:00:00]} 20. d7 {[%emt 0:00:00]} Ba6 {[%emt 0:00:00]} 21. Bf1 {[%emt 0:
00:00]} Bxf1 {[%emt 0:00:00]} 22. Rc8+ {[%emt 0:00:00]} Rf8 {[%emt 0:00:00]}
23. Rxf8+ {[%emt 0:00:00]} Bxf8 {[%emt 0:00:00]} 24. Ne6 {[%emt 0:00:00]} Be7 {
[%emt 0:00:00]} 25. Rxf1 {[%emt 0:00:00]} Kf7 {[%emt 0:00:00]} 26. Rc1 {
[%emt 0:00:00]} Kxe6 {[%emt 0:01:31]} 27. Rc8 {[%emt 0:00:00]} Kxd7 {[%emt 0:
00:00]} 28. Rxa8 {[%emt 0:00:40]} Bc5 {[%emt 0:01:29]} 29. Rh8 {[%emt 0:00:19]}
h6 {[%emt 0:00:00]} 30. Rxh6 e3 {[%emt 0:00:00]} 31. Rh7+ Kc6 {[%emt 0:02:12]}
32. fxe3 {[%emt 0:00:00]} Bxe3+ {[%emt 0:00:00]} 33. Kf1 {[%emt 0:00:00]} Kb5 {
[%emt 0:00:00]} 34. Ke2 {[%emt 0:00:00]} Bd4 {[%emt 0:00:00]} 35. Kd3 {[%emt 0:
00:00]} Bg1 {[%emt 0:00:00]} 36. h3 {[%emt 0:00:00]} a5 {[%emt 0:00:00]} 37.
Rg7 {[%emt 0:00:00]} g5 {[%emt 0:00:00]} 38. Rxg5 {[%emt 0:00:00]} Ka4 {
[%emt 0:00:00]} 39. Rxf5 {[%emt 0:00:00]} Bb6 {[%emt 0:00:00]} 40. g4 {[%emt 0:
00:00]} Bd8 {[%emt 0:00:00]} 41. g5 {[%emt 0:00:00]} Be7 {[%emt 0:00:00]} 42.
g6 {[%emt 0:00:00]} Bb4 {[%emt 0:00:00]} 43. g7 {[%emt 0:00:00]} Bc3 {[%emt 0:
00:00]} 44. bxc3 {[%emt 0:00:00]} 1-0